Cogmind - Beta 15 @@@ ROGUE MODE // 2025.07.19 @ 14:13:09 Player: saltine Result: Destroyed by KJ-JFN(R) with Subdweller Machine Gun Performance ------------- Evolutions (0) 0 Regions Visited (2) 400 Robots Destroyed (18) 90 Value Destroyed (461) 461 Prototype IDs (2) 40 Alien Tech Used (0) 0 Bonus (0) 0 TOTAL SCORE: 991 Bonus ------- None Cogmind --------- Core Integrity 0/250 Matter 241/300 Energy 67/100 System Corruption 0% Temperature Cool (0) Movement Core (750) Ox14 Location -10/Subcaves Parts ------- > --- POWER (1) -------- (None) > --- PROPULSION (2) --- (None) > --- UTILITY (2) ------ High-capacity Storage Unit > --- WEAPON (2) ------- Subdweller Machine Gun > --- INVENTORY (20) --- Subdweller Power Source Subdweller Power Source Wheel Compact Wheel Medium Storage Unit High-capacity Matter Pod (200) Scrap Shield EM Pulse Gun Assault Rifle Assault Rifle Assault Rifle Light Assault Rifle Battle Rifle Battle Rifle Battle Rifle Subdweller Machine Gun Grenade Launcher Grenade Launcher Mining Laser Peak State ------------ > --- POWER ------------ Light Ion Engine > --- PROPULSION ------- Light Treads Light Treads > --- UTILITY ---------- High-capacity Storage Unit Makeshift Kinetic Plating > --- WEAPON ----------- Beam Cannon Subdweller Machine Gun > --- INVENTORY -------- Subdweller Power Source Subdweller Power Source Wheel Compact Wheel Medium Storage Unit High-capacity Matter Pod Scrap Shield EM Pulse Gun Assault Rifle Assault Rifle Assault Rifle Light Assault Rifle Battle Rifle Battle Rifle Subdweller Machine Gun Grenade Launcher Grenade Launcher Mining Laser [Rating: 13] Favorites ----------- Power Light Ion Engine Engine Light Ion Engine Propulsion Light Treads Treads Light Treads Utility High-capacity Storage Unit Device Seismic Detector Storage High-capacity Storage Unit Protection Makeshift Kinetic Plating Weapon Beam Cannon Energy Gun EM Pulse Gun Energy Cannon Beam Cannon Ballistic Gun Assault Rifle Special Weapon Mining Laser Build | -11 -10 -10 ------- Run | Yrd Mat Sub Slots Evolved . | . . . Power . | . . . Propulsion . | . . . Utility . | . . . Weapon . | . . . Parts Attached 21 | 7 4 10 Power 2 | 1 1 . Engine 2 | 1 1 . Core . | . . . Reactor . | . . . Propulsion 4 | 2 . 2 Treads 4 | 2 . 2 Leg . | . . . Wheel . | . . . Hover . | . . . Flight . | . . . Utility 6 | 2 2 2 Device 1 | 1 . . Storage 4 | 1 2 1 Processor . | . . . Hackware . | . . . Protection 1 | . . 1 Artifact . | . . . Weapon 9 | 2 1 6 Energy Gun 1 | . . 1 Energy Cannon 1 | . . 1 Ballistic Gun 6 | 2 . 4 Ballistic Cannon . | . . . Launcher . | . . . Special Weapon 1 | . 1 . Impact Weapon . | . . . Slashing Weapon . | . . . Piercing Weapon . | . . . Special Melee Weapon . | . . . Unidentified Prototypes . | . . . Parts Lost 9 | . 1 8 Power 2 | . 1 1 Propulsion 4 | . . 4 Utility 2 | . . 2 Weapon 1 | . . 1 Highest Loss Streak 4 | . 1 4 To Critical Strikes 1 | . . 1 Average Backups 13 | 3 8 16 Power 1 | . . 1 Propulsion 2 | 1 3 2 Utility 2 | . . 2 Weapon 7 | . 4 9 Tool/Special . | . . . Unused Backups 10 | . . 10 Power 2 | . . 2 Propulsion 2 | . . 2 Utility 1 | . . 1 Weapon 5 | . . 5 Tool/Special . | . . . Average Slot Usage (%) 95 | . 99 93 Engine 13 | . 13 13 Treads 27 | . 28 27 Device 5 | . 14 1 Storage 14 | . 14 14 Protection 5 | . . 6 Energy Cannon 10 | . . 14 Ballistic Gun 16 | . 27 11 Special Weapon 1 | . . 2 Peak Build Rating 13 | 7 8 13 Average Rating 9 | 5 7 10 On Entrance 5 | . 7 8 Naked Turns . | . . . Heaviest Build 57 | 12 47 57 Greatest Support 40 | 40 40 40 Greatest Overweight (x) 1 | . 1 1 Average Overweight (x) . | . . 1 Largest Inventory Capacity 20 | 8 20 20 Average Capacity 17 | 5 12 20 Most Carried 20 | 5 13 20 Average Carried 14 | 3 8 17 Final Capacity 20 | 8 20 20 Final Carried 20 | 5 13 20 Class Distribution -------------------- 100% | Mutant Dominant Class ---------------- Mutant | -10/Materials Mutant | -10/Subcaves Resources | -11 -10 -10 ----------- Run | Yrd Mat Sub Matter Collected 877 | 315 150 412 Remotely . | . . . Salvage Created 838 | 158 304 376 Parts 35 | 12 15 8 Haulers Intercepted 2 | . 2 . Recyclers Shooed . | . . . Parts Field Recycled . | . . . Retrieved Matter . | . . . Parts Self-Destructed 4 | . . 4 Prevented . | . . . Kills | -11 -10 -10 ------- Run | Yrd Mat Sub Combat Hostiles Destroyed 11 | . 5 6 Guns 7 | . 5 2 Cannons 3 | . . 3 Classes Destroyed 7 | 2 2 3 Tunneler 4 | 4 . . Hauler 2 | . 2 . Recycler 1 | 1 . . Grunt 5 | . 5 . Artisan 2 | . . 2 Cobbler 1 | . . 1 Subdweller 6 | . . 6 Best Kill Streak 5 | 5 3 2 Combat Bots Only 3 | . 3 2 Max Kills in Single Turn 1 | 1 1 1 Gunslinging . | . . . Exploded . | . . . Melee . | . . . Uniques/NPCs Destroyed . | . . . Combat | -11 -10 -10 -------- Run | Yrd Mat Sub Hostile Shots Fired 95 | . 32 63 Missed 16 | . 7 9 Hits 79 | . 25 54 Projectile 79 | . 25 54 Critical Strikes 3 | . 1 2 Damage Taken 1501 | . 388 1113 Core 254 | . 30 224 Absorbed by Shields . | . . . Ignored by Resistances 86 | . . 86 Core Remaining (%) 100 | 100 . . Volleys Fired 100 | 12 31 57 Largest 2 | 2 2 2 Hottest 100 | 40 100 100 Shots Fired 195 | 24 61 110 Gun 139 | 24 60 55 Cannon 53 | . . 53 Launcher . | . . . Special 3 | . 1 2 Kinetic 134 | 24 60 50 Thermal 56 | . 1 55 Explosive . | . . . Electromagnetic 5 | . . 5 Robot Hit Streak 25 | 7 25 25 Robot Miss Streak 3 | 3 1 3 Penetration Max . | . . . Secondary Targets 1 | . 1 . Max Gunslinging Chain 1 | . 1 . Shots Hit Robots 157 | 15 50 92 Core Hits 41 | 7 16 18 Critical Kills 1 | . . 1 Critical Parts Destroyed 1 | . 1 . Critical Strikes 3 | . 1 2 Meltdown 1 | . . 1 Destroy 2 | . 1 1 Melee Attacks . | . . . Impact . | . . . Slashing . | . . . Piercing . | . . . Sneak Attacks . | . . . Combat Hostiles . | . . . Follow-up Attacks . | . . . Damage Inflicted 1435 | 171 517 747 Guns 1012 | 169 517 326 Cannons 421 | . . 421 Explosions . | . . . Melee . | . . . Ramming 2 | 2 . . Kinetic 1012 | 169 517 326 Thermal 421 | . . 421 Explosive . | . . . Electromagnetic . | . . . Impact . | . . . Slashing . | . . . Piercing . | . . . Highest Corruption . | . . . Average Corruption . | . . . Corruption Purged . | . . . Corruption Blocked . | . . . Overload Shots . | . . . Overflow Damage . | . . . Projectiles . | . . . Explosions . | . . . Melee . | . . . Knockbacks . | . . . Impact . | . . . Kinetic . | . . . Secondary . | . . . Self-Inflicted Damage . | . . . Shots . | . . . Rammed 1 | 1 . . Targets Rammed 1 | 1 . . Kicked . | . . . Crushed . | . . . Highest Temperature 27 | . 27 . Average Temperature 9 | . 9 . Received Heat Transfer 243 | . 183 60 Siege Activations . | . . . Martial Activations . | . . . Shielding Activations . | . . . Robots Disrupted . | . . . Combat Hostiles . | . . . Robots Corrupted . | . . . Combat Hostiles . | . . . Parts Fried . | . . . Impact Corruptions . | . . . Robots Melted 1 | . . 1 Combat Hostiles 1 | . . 1 Parts Melted 2 | . . 2 Heat Transferred 888 | . . 888 Parts Sabotaged . | . . . Parts Stolen . | . . . Parts Stripped . | . . . Power Chain Reactions . | . . . Alert | -11 -10 -10 ------- Run | Yrd Mat Sub Maximum Alert Level . | . . . Low Security (%) 100 | 100 100 . Level 1 . | . . . Level 2 . | . . . Level 3 . | . . . Level 4 . | . . . Level 5 . | . . . High Security . | . . . Max Security . | . . . Peak Influence 75 | 20 75 . Initial . | . . . Average 11 | 3 13 . Influence Increases 192 | 25 167 . Destroy 0b10 Robot/C 100 | . 100 . Destroy 0b10 Robot/NC 35 | 25 10 . Destroy Leader 24 | . 24 . Successful Hack 17 | . 17 . Destroy Structure 1 | . 1 . Lose Combat Pursuer 15 | . 15 . Influence Decreases 192 | 25 167 . Time Decay 182 | 25 157 . Lost Part 10 | . 10 . Squads Dispatched 1 | . 1 . Investigation 1 | . 1 . Extermination . | . . . Reinforcement . | . . . Assault . | . . . Garrison . | . . . Intercept . | . . . Searches Triggered . | . . . Construction Impeded . | . . . Haulers Reinforced . | . . . Active Scanning Responses . | . . . Cargo Convoy Interrupts . | . . . Stealth | -11 -10 -10 --------- Run | Yrd Mat Sub Distress Signals . | . . . Communications Jammed . | . . . Distress Signals . | . . . Times Spotted 15 | . 8 7 Peak Tracking Total 3 | . 3 2 Tactical Retreats 1 | . 1 . Traps | -11 -10 -10 ------- Run | Yrd Mat Sub Traps Triggered 4 | . 2 2 Indirectly . | . . . Trap Hack Attempts . | . . . Triggered . | . . . Disarmed . | . . . Reprogrammed . | . . . Reused . | . . . Traps Extracted . | . . . Installed . | . . . Triggered . | . . . Machines | -11 -10 -10 ---------- Run | Yrd Mat Sub Machines Disabled . | . . . Max in Single Turn . | . . . Machines Repaired . | . . . Machines Dismantled . | . . . Machines Sabotaged . | . . . Overloaded Fab Kills . | . . . Hacking | -11 -10 -10 --------- Run | Yrd Mat Sub Machines Accessed 4 | . 4 . Terminals 4 | . 4 . Fabricators . | . . . Repair Stations . | . . . Recycling Units . | . . . Scanalyzers . | . . . Garrison Access . | . . . Total Hacks 13 | . 13 . Successful 5 | . 5 . Failed 8 | . 8 . Catastrophic 4 | . 4 . Database Lockouts . | . . . Manual 6 | . 6 . Terminals 13 | . 13 . Fabricators . | . . . Repair Stations . | . . . Recycling Units . | . . . Scanalyzers . | . . . Garrison Access . | . . . Terminal Hacks 4 | . 4 . Prototype ID Bank 1 | . 1 . Transport Status 1 | . 1 . Hauler Manifests 2 | . 2 . Fabricator Hacks . | . . . Repair Station Hacks . | . . . Recycling Unit Hacks . | . . . Scanalyzer . | . . . Garrison Access Hacks . | . . . Unauthorized Hacks 1 | . 1 . Terminals 1 | . 1 . Botnet 1 | . 1 . Fabricators . | . . . Repair Stations . | . . . Recycling Units . | . . . Scanalyzers . | . . . Garrison Access . | . . . Data Cores Recovered . | . . . Used . | . . . Hacking Detections 3 | . 3 . Full Trace Events . | . . . Feedback Events . | . . . Feedback Blocked . | . . . Robot Schematics Acquired . | . . . Robots Built . | . . . Authchips . | . . . Time . | . . . Total Robot Build Rating . | . . . Part Schematics Acquired . | . . . Parts Built . | . . . Authchips . | . . . Time . | . . . Total Part Build Rating . | . . . Parts Repaired . | . . . Time . | . . . Parts Recycled . | . . . Recycled Matter . | . . . Retrieved Matter . | . . . Retrieved Components . | . . . Parts Scanalyzed . | . . . Part Schematics Acquired . | . . . Parts Damaged . | . . . Bothacking | -11 -10 -10 ------------ Run | Yrd Mat Sub Used RIF Installer . | . . . Robots Hacked . | . . . Non-combat . | . . . Combat . | . . . Robot Hacks Applied . | . . . Relay Couplers Released . | . . . Fabnet Peak Effective % . | . . . Robots Rewired . | . . . Allies Hacked . | . . . Hacks Repelled . | . . . Allies | -11 -10 -10 -------- Run | Yrd Mat Sub Total Allies . | . . . Largest Group . | . . . Highest-Rated Group . | . . . Highest-Rated Ally . | . . . Total Orders . | . . . Ally Attacks . | . . . Total Damage . | . . . Kills . | . . . Allies Corrupted . | . . . Allies Melted . | . . . Intel | -11 -10 -10 ------- Run | Yrd Mat Sub Active Infowar (turns) 964 | 39 697 228 Seismic 964 | 39 697 228 Robot Analysis Total . | . . . Derelict Logs Recovered 1 | . . 1 Drone Launches . | . . . Drone Recoveries . | . . . Exploration | -11 -10 -10 ------------- Run | Yrd Mat Sub Turns Passed 2674 | 121 697 1856 Spaces Moved 1041 | 47 315 679 Core 4 | 4 . . Treads 1037 | 43 315 679 Legs . | . . . Wheels . | . . . Hover . | . . . Flight . | . . . Fastest Speed 50 | 50 160 240 Average Speed 219 | 150 187 240 Slowest Speed 240 | 160 240 240 Overloaded Moves . | . . . Propulsion Burnouts . | . . . Robots Hopped . | . . . Potential Cave-ins . | . . . Cave-ins Triggered . | . . . Exploration Rate (%) 29 | 4 53 32 Regions Visited 2 Branch Regions 1 Pre-discovered Areas . | . . . Known Exits Taken . | . . . Unknown Exits Taken 2 | 1 1 . Scrap Searched 1 | . . 1 Spaces Dug 1 | . 1 . Terrain Destroyed 1 | . 1 . Melee . | . . . Projectile 1 | . 1 . AOE . | . . . Terrain Rammed . | . . . Walls Destroyed . | . . . Machines Disabled . | . . . Actions | -11 -10 -10 --------- Run | Yrd Mat Sub Total 1222 | 72 366 784 Wait 33 | . 8 25 Move 1039 | 46 314 679 Hop . | . . . Pick Up 21 | 6 8 7 Fast Attach 8 | 6 . 2 Attach 4 | 1 1 2 Detach 1 | . . 1 Swap 14 | . 3 11 Drop 1 | . 1 . Fire 100 | 12 31 57 Melee . | . . . Ram . | . . . Kick . | . . . Crush 1 | 1 . . Escape Stasis . | . . . Rewire . | . . . Trap . | . . . Miscellaneous . | . . . Route ------- -11/Scrapyard -10/Materials (discovered 2 exits: [*Mat] / [*Sub]) -10/Subcaves (discovered 2 exits: [*Mat] / [*Scr]) History --------- Turn | Location | Event 9 | -11/Scrapyard | Discovered new exit (range 15) 122 | -11/Scrapyard | Entered Materials 188 | -10/Materials | Discovered new exit (range 14) 318 | -10/Materials | Build established: Mutant 434 | -10/Materials | Discovered new exit (range 10) 819 | -10/Materials | Entered Subcaves 820 | -10/Subcaves | Approached by a straggling Scientist 821 | -10/Subcaves | Scientist uncovered a shortcut to Scraptown 1066 | -10/Subcaves | Disturbed a concealed Subdweller 1207 | -10/Subcaves | Discovered new exit (range 14) 1210 | -10/Subcaves | Shifting Twisted Machinery released Battle Rifle 1220 | -10/Subcaves | Shifting Twisted Machinery released Sub. Power Source 1282 | -10/Subcaves | Ambushed by angry Subdweller bent on revenge 1928 | -10/Subcaves | Learned Materials stockpile data 1999 | -10/Subcaves | Core integrity fell below 50% 2596 | -10/Subcaves | Ambushed by angry Subdweller bent on revenge 2638 | -10/Subcaves | Core integrity fell below 20% 2675 | -10/Subcaves | Destroyed by KJ-JFN(R) with Subdweller Machine Gun Last Messages --------------- 02008_ Acquired Sub. Machine Gun. 02062_ Acquired 45 matter. 02523_ Acquired Battle Rifle. 02542_ L0-XYQ(u) tweaks Twisted Machinery. 02583_ L0-XYQ(u) cries out in pain. 02583_ L0-XYQ(u) destroyed. 02584_ Subatomizers dissect the Wheel. 02588_ Acquired 10 matter. 02596_ KJ-JFN(R) angrily emerges from the Twisted Machinery. 02596_ KJ-JFN(R): "WEHOME!" 02596_ Subatomizers dissect the Wheel. 02601_ Lgt. Ion Engine destroyed. 02619_ Subatomizers dissect the Wheel. 02641_ Lgt. Treads destroyed. 02643_ Subatomizers dissect the Wheel. 02659_ Mak. Kinetic Plating destroyed. 02669_ Lgt. Treads destroyed. 02671_ Beam Cannon destroyed. 02672_ Subatomizers dissect the Wheel. 02672_ KJ-JFN(R) suffers critical hit (Destroy). Map ----- +----------------------------------------------------+ | ????????????????????????????????????????# ##? | | ????????????????????????????????????????## ## | | ?????????????????????????????????????????# # | | ?????????????????????????????????????????# | | ?????????????????????????????????????????## | | ??????????????????????????????????????????## # | | ???????????????????????????????????????????# # | | ??????????????????????????????????????????## ## | | ??????????????????????????????????????????# # | | ??????????????????????????????????????????# | | ??????????????????????????????????????????## | | ???????????????????????????????????????????# | | ???????????????????????????????????????????## ## | | ???????????????????????????????????????????###### | | ?????????????????????????????????????####### #??## | | ????????????????????????????????????## ## ##??# | | ???????????????????????????????????## #### | | ?????????????????????#######???????# | | ????????????????????## #####??# | | ????????????????????"" "## "#?# ##### | | ????????????????????"" ""## "#?#### ##???### | | ??????????????????#"""" "" ## "## ######??????## | | ???????????????????# "" ""% =" #???????????## | | ???????????????????# ""R % %" #####???????## | | ???????????????????## "" " #????#### | | ????????????????????#""" @ " #????# | | ???????????????????# ""% ### #????# | | ???????????????????#"" #?## ####?# | | ???????????????????#"" ""#??# #### | | ???????????????????#" #?## #### | | ???????????????????# #?#" #?## | | ???????????????????# #?#" ##### | | ?????????????????? #?# #### ##### ## | | ?????????????????? ## #### ##### #?## | | ????????????????? ?###??# ##### | | ???????????????? ??????#% ### | | ???????????????# ???????# % | | ???????????????? ??????## | | ??????????????????##???????# ### | | ???????????????????????????# #?## # | | ??????????????????????????# ## #??## ## | | ?????????????????????????# #?### #???# ##? | | ????????????????????????# ????# #???###?? | | ??????????????????????? ????# ####???????? | | ?????????????????????? ?????# #??????????? | | ????????????????????? ##### ?????# ??????????? | | ??????????????????????????##??????# ??????????? | | ??????????????????????????????????# #?????????? | | ??????????????????????????????????# ?????????? | | ??????????????????????????????????## ?????????? | +----------------------------------------------------+ Best States ------------- Heat Dissipation 25 Energy Generation 10 Energy Capacity 125 Matter Stores 300 Matter Capacity 500 Sight Range 16 Terrain Scan Density 10 Armor Coverage 100 Resistance: KI 10 Evasion (%) 40 Recoil Reduction 2 Item Schematics ----------------- None Robot Schematics ------------------ None Fabricated ------------ Nothing Repaired ---------- Nothing Alien Tech Used ----------------- None Achievements -------------- None Challenges ------------ None Game ------ Seed InterceptStructuralBarrier Manual? 0 Play Time 00:09:14 Cumulative 537.6 hours Start 2025.07.19 @ 14:03:20 End 2025.07.19 @ 14:13:09 Sessions 1 Manual Loads 0 Difficulty Rogue Special Mode None Game No. 234 Rogue 234 Adventurer 0 Explorer 0 Win Type - Total 25 Types 7/4/7/2/1/0/1/1/1/1 Lore% 90 Gallery% 87 Achievement% 81 Wizard Run 0 Options --------- Layout 0 ASCII 0 Keyboard 1 Movement Arrows Keybinds 0 Fullscreen 2 Font 18/SmallcapsGlow Map View 76x50 Zoom Use 0% Tactical HUD 1 Map Filters NONE Filters NONE Steam 1 RUN: 3096b524-2bb3-4086-935b-9505382529e6